bitfinex-derivatives/quotes_SOLF0:USTF0_20251107
["timestamp","ask_amount","ask_price","bid_price","bid_amount"]
[1762556196926,0.04710883,163.39,163.37,8.6813]
[1762556197123,0.04710883,163.39,163.38,3.17]
[1762556206531,2.93710883,163.39,163.37,8.0]
[1762556206731,2.93710883,163.39,163.36,3.13061118]
[1762556207831,2.89,163.38,163.36,3.13061118]
[1762556211936,2.89,163.38,163.36,0.04061118]
[1762556216545,8.4011,163.38,163.36,0.04061118]
[1762556217440,2.89,163.37,163.36,0.04061118]
[1762556218947,2.89,163.38,163.36,3.13061118]
[1762556221344,0.04710883,163.39,163.36,3.13061118]
[1762556221545,4.31960252,163.38,163.36,3.13061118]
[1762556221848,2.93710883,163.39,163.36,3.13061118]
[1762556222045,4.31964708,163.38,163.36,3.13061118]
[1762556222242,4.32363252,163.37,163.36,3.13061118]
[1762556230447,7.41363252,163.37,163.36,0.04061118]
[1762556231356,7.41363252,163.37,163.36,3.09061118]
[1762556231658,4.32363252,163.37,163.36,3.09061118]
[1762556231849,7.41363252,163.37,163.36,3.09061118]
[1762556232359,7.41363252,163.37,163.36,0.04061118]
[1762556232857,7.41363252,163.37,163.36,3.09061118]
[1762556233257,4.32363252,163.37,163.36,3.09061118]
[1762556239663,4.28001757,163.37,163.36,3.09061118]
[1762556242561,7.37001757,163.37,163.36,0.04061118]
[1762556247867,3.09,163.36,163.31,7.64965048]
[1762556248074,3.09,163.34,163.26,3.05]
[1762556248268,3.09,163.32,163.26,3.05]
[1762556248571,3.09,163.3,163.26,3.05]
[1762556248771,7.37001757,163.29,163.26,3.05]
[1762556248975,3.12989616,163.29,163.26,8.6095643]
[1762556250168,3.12989616,163.29,163.27,3.05]
[1762556251768,3.12989616,163.29,163.26,0.0445643]
[1762556251974,3.12989616,163.29,163.26,3.0945643]
[1762556264083,3.12989616,163.29,163.27,3.11]
[1762556274383,3.12989616,163.29,163.26,3.1545643]
[1762556279590,3.12989616,163.29,163.27,3.11]
[1762556281995,3.12989616,163.29,163.26,8.6695643]
[1762556282292,3.12989616,163.29,163.27,3.03]
[1762556289510,3.12989616,163.29,163.26,0.0445643]
[1762556290102,3.11,163.27,163.26,0.0445643]
[1762556291103,5.5157,163.24,163.2,3.03]
[1762556291303,3.11,163.23,163.2,3.03]
[1762556291494,3.11,163.23,163.18,3.03]
[1762556292306,3.11,163.21,163.19,0.03985385]
[1762556293605,3.11,163.2,163.19,0.03985385]
[1762556294814,3.11,163.19,163.15,3.03]
[1762556295813,3.15177908,163.19,163.15,3.075085]
[1762556296705,3.11,163.16,163.08,10.67965048]
[1762556296906,3.11,163.16,163.08,3.03]
[1762556297104,3.11,163.14,163.08,3.03]
[1762556297809,3.11,163.12,163.09,3.07020341]
[1762556305810,3.15259069,163.13,163.09,3.07020341]
[1762556306204,0.04259069,163.13,163.09,0.04020341]
[1762556306407,0.04259069,163.13,163.11,3.03]
[1762556308107,0.04259069,163.13,163.11,8.5499]
[1762556308308,0.04259069,163.13,163.12,3.03]
[1762556315210,3.08,163.19,163.15,3.16]
[1762556315513,3.08,163.21,163.15,3.16]
[1762556315718,3.08,163.21,163.19,3.16]
[1762556315916,4.28202631,163.25,163.19,3.16]
[1762556315917,4.28266372,163.25,163.19,3.16]
[1762556316210,3.12027484,163.24,163.21,3.16]
[1762556316605,0.04027484,163.24,163.21,3.16]
[1762556318005,0.04027484,163.24,163.23,3.16]
[1762556323014,3.08,163.29,163.23,3.16]
[1762556323015,3.08,163.29,163.23,8.6758]
[1762556323220,3.08,163.29,163.24,3.06]
[1762556324122,0.04065023,163.28,163.25,3.10678381]
[1762556327018,0.04065023,163.28,163.26,3.06]
[1762556327923,0.04065023,163.28,163.27,3.06]
[1762556328613,3.11,163.34,163.29,3.06]
[1762556329414,3.11,163.34,163.27,3.06]
[1762556329717,3.11,163.31,163.29,0.03971629]
[1762556331618,8.6235,163.31,163.29,0.03971629]
[1762556331822,3.11,163.3,163.29,0.03971629]
[1762556333319,3.11,163.29,163.23,3.06]
[1762556334425,3.15372543,163.28,163.25,3.06]
[1762556336515,0.04372543,163.28,163.25,3.06]
[1762556337825,0.04372543,163.28,163.27,3.06]
[1762556341924,3.11,163.34,163.29,8.574]
[1762556342920,2.15983292,163.36,163.3,0.04292534]
[1762556342921,3.02,163.32,163.3,0.04292534]
[1762556349328,3.02,163.31,163.3,0.04292534]
[1762556349538,3.02,163.3,163.22,2.15983292]
[1762556349730,3.02,163.29,163.22,2.15983292]
[1762556349932,3.02,163.29,163.21,3.12]
[1762556349933,3.02,163.27,163.2,2.15983292]
[1762556350631,3.02,163.24,163.22,0.03900701]
[1762556355438,8.5359,163.24,163.22,0.03900701]
[1762556355638,3.02,163.23,163.22,0.03900701]
[1762556365957,3.02,163.21,163.17,3.12]
[1762556366660,3.02,163.2,163.14,10.79873292]
[1762556366857,3.02,163.18,163.15,0.04264293]
[1762556367463,3.02,163.16,163.09,8.6406]
[1762556367858,3.02,163.13,163.07,3.12]
[1762556368455,3.02,163.11,163.08,0.04337939]
[1762556369463,3.02,163.1,163.03,3.12]
[1762556369759,3.02,163.09,163.03,3.12]
[1762556369963,3.02,163.09,163.03,5.27983292]
[1762556370258,3.02,163.09,163.04,3.12]
[1762556370660,3.05924172,163.08,163.05,3.16212119]
[1762556370962,0.03924172,163.08,163.05,5.32195411]
[1762556371155,0.03924172,163.08,163.06,3.12]
[1762556380466,4.40439394,163.19,163.05,2.20195411]
[1762556380467,3.13,163.14,163.08,2.99]
[1762556380864,3.13,163.17,163.11,2.99]
[1762556381461,0.04334808,163.16,163.12,3.20652106]
[1762556381662,0.04334808,163.16,163.14,3.16]
[1762556383471,0.04334808,163.16,163.14,8.679]
[1762556383766,0.04334808,163.16,163.15,3.16]
[1762556385759,2.96334808,163.16,163.13,3.16]
[1762556385961,0.04334808,163.16,163.13,3.16]
[1762556387671,0.04334808,163.16,163.15,3.16]
[1762556395870,0.04334808,163.16,163.13,3.16]
[1762556396979,0.04334808,163.16,163.13,8.6794]
[1762556397184,0.04334808,163.16,163.14,3.16]
[1762556397877,2.96334808,163.16,163.14,3.16]
[1762556398480,0.04334808,163.16,163.14,3.16]
[1762556400784,0.04334808,163.16,163.15,3.16]
[1762556402584,2.92,163.23,163.18,3.16]
[1762556403293,2.92,163.23,163.19,3.16]
[1762556403592,2.92,163.23,163.19,3.20634106]
[1762556403593,2.96295911,163.23,163.19,3.20634106]
[1762556404585,2.96295911,163.23,163.19,0.04634106]
[1762556405187,2.88,163.21,163.19,3.20634106]
[1762556405890,2.88,163.2,163.19,0.04634106]
[1762556406087,2.88,163.2,163.13,3.16]
[1762556406288,5.5182,163.17,163.1,3.16]
[1762556406491,18.58995843,163.27,163.1,3.16]
[1762556406492,2.88,163.16,163.1,3.16]
[1762556406690,2.88,163.16,163.07,3.16]
[1762556407091,2.88,163.11,163.1,0.04462732]
[1762556407395,8.3999,163.12,163.1,0.04462732]
[1762556407688,2.88,163.12,163.1,0.04462732]
[1762556407894,0.04190291,163.13,163.1,3.20462732]
[1762556414094,0.04190291,163.13,163.1,8.72492732]
[1762556414297,0.04190291,163.13,163.11,3.16]
[1762556415297,0.04190291,163.13,163.11,8.6799]
[1762556415502,0.04190291,163.13,163.12,3.16]
[1762556416901,0.04190291,163.13,163.1,8.04462732]
[1762556416902,2.88,163.19,163.15,3.16]
[1762556417997,2.92058752,163.19,163.15,3.20286904]
[1762556419205,8.43808752,163.19,163.15,3.20286904]
[1762556419401,2.88,163.18,163.15,3.20286904]
[1762556423913,2.92058752,163.19,163.15,3.20286904]
[1762556424106,4.33035236,163.18,163.15,3.20286904]
[1762556424306,2.92058752,163.19,163.15,3.20286904]
[1762556424505,4.33262546,163.18,163.15,3.20286904]
[1762556424707,2.92058752,163.19,163.15,3.20286904]
[1762556425213,4.33559657,163.18,163.15,3.20286904]
[1762556425412,2.92058752,163.19,163.15,3.20286904]
[1762556425707,4.33561718,163.18,163.15,3.20286904]
[1762556426011,2.92058752,163.19,163.15,3.20286904]
[1762556426214,4.33561718,163.18,163.15,3.20286904]
[1762556426408,8.43808752,163.19,163.15,3.20286904]
[1762556426614,7.21615683,163.18,163.15,3.20286904]
[1762556426807,2.88,163.18,163.15,3.20286904]
[1762556427311,4.33641899,163.17,163.15,3.20286904]
[1762556427512,2.88,163.18,163.15,3.20286904]
[1762556427710,4.33653805,163.17,163.15,3.20286904]
[1762556428011,2.88,163.18,163.15,3.20286904]
[1762556429914,4.33633483,163.17,163.15,3.20286904]
[1762556430117,2.88,163.18,163.15,3.20286904]
[1762556431512,4.33630107,163.17,163.15,3.20286904]
[1762556431716,2.88,163.18,163.15,3.20286904]
[1762556431917,4.3364605,163.17,163.15,3.20286904]
[1762556432118,5.55808752,163.19,163.17,3.02]
[1762556432119,0.04058752,163.19,163.17,3.02]
[1762556432314,4.33606517,163.18,163.17,3.02]
[1762556433011,7.22606517,163.18,163.15,3.06286904]
[1762556433213,2.89,163.18,163.15,3.06286904]
[1762556433825,2.93058752,163.19,163.16,3.02]
[1762556434024,4.33584388,163.18,163.16,3.02]
[1762556434217,2.93058752,163.19,163.16,3.02]
[1762556434418,4.33592774,163.18,163.16,3.02]
[1762556434614,2.93058752,163.19,163.16,3.02]
[1762556434818,4.33553535,163.18,163.16,3.02]
[1762556435018,2.93058752,163.19,163.16,8.5384]
[1762556435223,4.33553535,163.18,163.16,8.5384]
[1762556435424,2.93058752,163.19,163.16,8.5384]
[1762556435625,4.33541756,163.18,163.16,8.5384]
[1762556435826,2.89,163.16,163.15,0.04286904]
[1762556436022,2.89,163.15,163.08,3.02]
[1762556436225,2.89,163.13,163.09,3.02]
[1762556437027,2.93178347,163.13,163.09,3.06509539]
[1762556437930,2.93178347,163.13,163.09,8.58579539]
[1762556438635,2.93178347,163.13,163.09,3.06509539]
[1762556439428,2.93178347,163.13,163.09,8.58579539]
[1762556441226,2.93178347,163.13,163.1,3.02]
[1762556441421,2.93178347,163.13,163.12,2.95]
[1762556441422,0.04178347,163.13,163.12,2.95]
[1762556446236,3.18178347,163.13,163.09,8.51569539]
[1762556446739,3.18178347,163.13,163.09,0.04509539]
[1762556448027,3.14,163.12,163.09,0.04509539]
[1762556452837,5.56138347,163.13,163.1,2.95]
[1762556452838,3.18178347,163.13,163.1,2.95]
[1762556453544,0.04178347,163.13,163.12,2.95]
[1762556460441,0.04178347,163.13,163.12,5.11375276]
[1762556460637,3.14,163.19,163.14,2.95]
[1762556460942,2.16375276,163.22,163.14,2.95]
[1762556460943,3.14,163.17,163.14,2.95]
[1762556461737,3.18015138,163.17,163.14,2.99030173]
[1762556461937,3.18015138,163.17,163.14,8.50930173]
[1762556462446,0.04015138,163.17,163.14,2.99030173]
[1762556462742,2.97015138,163.17,163.14,5.15405449]
[1762556464048,2.97015138,163.17,163.15,5.5186]
[1762556464443,2.97015138,163.17,163.15,8.5086]
[1762556466845,0.04015138,163.17,163.16,2.99]
[1762556477154,0.04015138,163.17,163.16,5.15375276]
[1762556480864,2.97015138,163.17,163.14,3.03030173]
[1762556481360,2.97015138,163.17,163.15,2.16375276]
[1762556484963,2.97015138,163.17,163.15,5.15375276]
[1762556489768,2.97015138,163.17,163.16,2.99]
[1762556489972,7.27575198,163.17,163.16,2.99]
[1762556490573,7.27575198,163.17,163.15,10.67245276]
[1762556490775,2.97015138,163.17,163.15,10.67245276]
[1762556491268,2.97015138,163.17,163.14,0.04030173]
[1762556491473,2.93,163.15,163.14,0.04030173]
[1762556494072,0.04015138,163.17,163.14,3.00030173]
[1762556494073,3.07,163.16,163.14,3.00030173]
[1762556496372,4.31063893,163.15,163.14,3.00030173]
[1762556503184,7.34063893,163.15,163.14,3.00030173]
[1762556504686,11.84455653,163.15,163.14,0.04030173]
[1762556505288,3.03,163.14,163.09,8.4108]
[1762556505592,3.03,163.12,163.08,2.89]
[1762556505785,3.03,163.1,163.06,10.57535276]
[1762556506189,3.07403581,163.1,163.06,10.62079992]
[1762556506491,3.07403581,163.1,163.07,2.89]
[1762556507086,3.07403581,163.1,163.07,8.4114]
[1762556508096,0.04403581,163.1,163.09,2.89]
[1762556515402,3.07403581,163.1,163.08,5.5211]
[1762556515596,3.07403581,163.1,163.07,2.89]
[1762556516505,3.07403581,163.1,163.07,8.4114]
[1762556521607,3.07403581,163.1,163.06,0.04544716]
[1762556521800,3.07403581,163.1,163.06,2.93544716]
[1762556522306,7.15025195,163.09,163.06,2.93544716]
[1762556522607,2.87,163.09,163.06,2.93544716]
[1762556523408,2.87,163.09,163.06,8.45724716]
[1762556523609,2.87,163.09,163.07,3.1]
[1762556524609,2.87,163.09,163.06,5.56724716]
[1762556525006,2.87,163.09,163.06,8.66724716]
[1762556525803,2.87,163.09,163.07,3.1]
[1762556526613,2.87,163.09,163.06,8.66724716]
[1762556527713,2.87,163.09,163.07,3.1]
[1762556527909,4.27351424,163.08,163.06,0.04544716]
[1762556528115,2.87,163.09,162.97,1.06705915]
[1762556528116,2.87,163.06,162.97,3.1]
[1762556528416,2.87,163.04,162.97,3.1]
[1762556528611,2.87,163.04,162.96,3.3844392]
[1762556528612,2.87,163.04,162.98,8.6243]
[1762556528811,2.87,163.04,162.98,3.1]
[1762556529011,2.87,163.02,162.99,0.03995977]
[1762556530215,2.87,163.0,162.99,0.03995977]
[1762556533514,2.87,163.02,162.93,3.1]
[1762556533915,2.87,163.02,162.98,3.1]
[1762556534424,0.0456531,163.02,162.98,3.14001345]
[1762556534616,0.0456531,163.02,163.01,3.1]
[1762556535518,2.9156531,163.02,162.98,0.04001345]
[1762556535917,2.87,163.01,162.98,0.04001345]
[1762556536225,2.87,163.01,162.93,3.1]
[1762556536618,2.87,162.99,162.93,3.1]
[1762556537115,0.0393745,162.98,162.94,0.04184947]
[1762556537320,2.87,162.97,162.94,0.04184947]
[1762556539017,2.87,162.97,162.87,3.1]
[1762556539018,2.87,162.95,162.87,3.1]
[1762556539517,2.87,162.93,162.87,3.1]
[1762556540019,2.98190698,162.97,162.88,0.04613063]
[1762556540020,2.87,162.91,162.88,0.04613063]
[1762556540326,2.87,162.91,162.88,3.14613063]
[1762556540518,2.87,162.91,162.88,0.04613063]
[1762556541419,2.87,162.91,162.88,3.14613063]
[1762556541824,2.87,162.91,162.88,0.04613063]
[1762556544327,8.3971,162.91,162.88,0.04613063]
[1762556544518,2.87,162.9,162.88,0.04613063]
[1762556547114,2.87,162.9,162.88,3.14613063]
[1762556547319,2.90953137,162.92,162.88,3.14613063]
[1762556548526,0.03953137,162.92,162.88,3.14613063]
[1762556549724,0.03953137,162.92,162.91,3.1]
[1762556550622,7.24262772,163.01,162.94,3.1]
[1762556550821,2.87,163.01,162.94,3.1]
[1762556551426,2.87,163.01,162.96,3.1]
[1762556551729,0.03883691,163.0,162.98,3.1]
[1762556551930,0.03883691,163.0,162.98,8.6244]
[1762556552233,0.03883691,163.0,162.99,3.1]
[1762556552625,0.03883691,163.0,162.97,0.04445768]
[1762556552626,2.88,163.07,163.01,2.91]
[1762556553122,2.88,163.07,163.03,2.91]
[1762556553735,2.92194518,163.07,163.03,0.04520857]
[1762556554028,2.92194518,163.07,163.03,2.95520857]
[1762556554826,0.04194518,163.07,163.03,2.95520857]
[1762556555930,2.92194518,163.07,163.03,2.95520857]
[1762556556225,2.92194518,163.07,163.03,0.04520857]
[1762556556625,8.44364518,163.07,163.03,0.04520857]
[1762556556932,2.88,163.05,163.03,0.04520857]
[1762556558027,2.88,163.05,162.97,2.91]
[1762556558635,8.4027,163.04,162.97,2.91]
[1762556559136,0.04530475,163.02,162.99,2.94942264]
[1762556559523,2.92530475,163.02,162.99,2.94942264]
[1762556560328,2.92530475,163.02,162.99,0.03942264]
[1762556560726,5.5238,163.01,162.99,0.03942264]
[1762556560948,2.88,163.0,162.99,0.00466875]
[1762556562229,11.79693502,163.0,162.99,0.00466875]
[1762556564535,13.01693502,163.0,162.99,0.00466875]
[1762556566139,11.79693502,163.0,162.99,0.00466875]
[1762556566739,2.87,162.96,162.9,2.9]
[1762556567735,2.87,162.94,162.91,0.04148479]
[1762556567940,2.87,162.94,162.91,2.94148479]
[1762556568437,2.87,162.94,162.91,0.04148479]
[1762556568624,2.87,162.94,162.85,2.9]
[1762556568625,2.87,162.92,162.85,2.9]
[1762556568932,12.76581798,162.91,162.85,2.9]
[1762556569131,8.397,162.91,162.85,2.9]
[1762556569438,2.87,162.89,162.85,2.9]
[1762556569638,2.91680694,162.89,162.85,2.9392764]
[1762556570934,2.91680694,162.89,162.85,0.0392764]
[1762556571138,8.44460694,162.89,162.85,0.0392764]
[1762556571336,2.87,162.88,162.85,0.0392764]
[1762556572043,8.3981,162.88,162.85,0.0392764]
[1762556572231,2.87,162.87,162.85,0.0392764]
[1762556574233,8.3984,162.87,162.85,0.0392764]
[1762556574436,2.87,162.86,162.85,0.0392764]
[1762556580551,0.04680694,162.89,162.85,2.9392764]
[1762556581643,0.04680694,162.89,162.88,2.9]
[1762556581948,2.87,162.99,162.88,2.9]
[1762556582142,17.27191798,162.98,162.91,2.95]
[1762556582450,8.3948,162.98,162.91,2.95]
[1762556582846,3.09171894,162.96,162.93,0.0447533]
[1762556584446,8.5757,162.95,162.93,0.0447533]
[1762556584949,3.05,162.95,162.93,0.0447533]
[1762556585550,0.04171894,162.96,162.93,2.9947533]
[1762556586648,3.09171894,162.96,162.93,2.9947533]
[1762556587045,0.04171894,162.96,162.93,2.9947533]
[1762556588054,3.09171894,162.96,162.93,2.9947533]
[1762556588754,0.04171894,162.96,162.93,2.9947533]
[1762556589449,5.56711894,162.96,162.93,2.9947533]
[1762556589642,3.09171894,162.96,162.93,0.0447533]
[1762556589841,3.05,162.94,162.93,0.0447533]
[1762556593354,3.05,162.91,162.84,2.95]
[1762556594458,5.57102952,162.89,162.86,2.99238989]
[1762556597059,8.62102952,162.89,162.86,2.99238989]
[1762556598358,3.05,162.88,162.86,0.04238989]
[1762556598566,8.5781,162.88,162.86,0.04238989]
[1762556599370,3.05,162.87,162.86,0.04238989]
[1762556600165,3.05,162.84,162.8,2.95]
[1762556600570,3.05,162.84,162.75,2.95]
[1762556601170,0.03924176,162.81,162.78,0.03879776]
[1762556601370,0.03924176,162.81,162.78,2.98879776]
[1762556601669,8.61964176,162.81,162.78,2.98879776]
[1762556602973,5.56964176,162.81,162.78,2.98879776]
[1762556604264,8.61964176,162.81,162.78,2.98879776]
[1762556605776,5.56964176,162.81,162.78,2.98879776]
[1762556606075,8.61964176,162.81,162.78,2.98879776]
[1762556606763,0.03924176,162.81,162.78,2.98879776]
[1762556606966,4.49945193,162.89,162.8,2.95]
[1762556607174,4.96285077,162.9,162.81,1.91285077]
[1762556607475,5.5282,162.88,162.82,2.95]
[1762556608076,3.09557474,162.87,162.83,2.99565641]
[1762556608377,3.09442105,162.87,162.83,2.9912702]
[1762556608569,8.5787,162.86,162.83,2.9912702]
[1762556609078,3.05,162.86,162.83,0.0412702]
[1762556609276,3.05,162.84,162.83,0.0412702]
[1762556610570,7.37765568,162.84,162.83,0.0412702]
[1762556612679,5.5291,162.85,162.83,2.9012702]
[1762556613381,0.04442105,162.87,162.83,2.9012702]
[1762556613582,3.04442105,162.87,162.83,2.9012702]
[1762556614987,5.5287,162.86,162.83,2.9012702]
[1762556615477,3.04442105,162.87,162.83,2.9012702]
[1762556615478,5.5291,162.85,162.83,2.9012702]
[1762556615672,8.5291,162.85,162.83,0.0412702]
[1762556616079,3.0,162.84,162.83,0.0412702]
[1762556619985,3.0,162.81,162.76,2.86]
[1762556620193,3.0,162.81,162.71,2.86]
[1762556620378,3.0,162.81,162.73,2.86]
[1762556620579,4.32805875,162.83,162.73,2.86]
[1762556620778,3.0,162.84,162.73,2.86]
[1762556620979,0.04387948,162.8,162.76,2.86]
[1762556621186,3.01,162.87,162.78,3.01]
[1762556621381,3.01,162.87,162.79,3.01]
[1762556621983,3.01,162.91,162.81,3.01]
[1762556622183,0.04057332,162.88,162.84,3.05461653]
[1762556622686,3.05057332,162.88,162.84,0.04461653]
[1762556623985,8.5387,162.86,162.84,0.04461653]
[1762556626286,3.01,162.85,162.84,0.04461653]
[1762556629589,8.5397,162.83,162.78,3.01]
[1762556629787,3.01,162.86,162.78,3.01]
[1762556629983,3.01,162.89,162.79,3.01]
[1762556630187,3.01,162.89,162.82,3.01]
[1762556630588,0.04187765,162.87,162.84,3.05662478]
[1762556630793,3.05187765,162.87,162.84,0.04662478]
[1762556630989,0.04187765,162.87,162.84,3.05662478]
[1762556631194,0.04187765,162.87,162.85,3.01]
[1762556631586,5.5261,162.94,162.87,3.01]
[1762556632787,0.04669545,162.92,162.89,3.05176809]
[1762556635390,5.69198218,162.98,162.91,3.01]
[1762556635391,3.01,162.98,162.91,3.01]
[1762556635588,3.01,162.98,162.82,22.46290474]
[1762556635589,1.91105986,162.97,162.86,1.91105986]
[1762556635795,10.44675986,162.95,162.88,3.01]
[1762556636292,5.5261,162.94,162.88,3.01]
[1762556636484,3.01,162.92,162.89,0.04648832]
[1762556636689,3.01,162.92,162.89,3.05484475]
[1762556636690,3.05445003,162.92,162.89,3.05484475]
[1762556637000,8.58125003,162.92,162.89,3.05484475]
[1762556637289,3.01,162.9,162.81,3.01]
[1762556637595,1.91105986,162.87,162.81,3.01]
[1762556637889,4.40634371,162.9,162.81,3.01]
[1762556638085,1.91105986,162.89,162.81,3.01]
[1762556638283,3.0535717,162.87,162.83,3.0536973]
[1762556638998,8.5819717,162.87,162.83,3.0536973]
[1762556639188,3.01,162.86,162.83,3.0536973]
[1762556639389,3.01,162.86,162.83,0.0436973]
[1762556639692,8.5392,162.85,162.83,0.0436973]
[1762556640598,5.5720717,162.87,162.83,3.0536973]
[1762556640895,3.01,162.85,162.83,0.0436973]
[1762556641093,8.5391,162.85,162.83,0.0436973]
[1762556641395,3.01,162.84,162.83,0.0436973]
[1762556641595,3.01,162.86,162.83,0.0436973]
[1762556643091,2.9,162.85,162.83,0.0436973]
[1762556643286,4.40657106,162.84,162.83,0.0436973]
[1762556643485,7.30657106,162.84,162.83,0.0436973]
[1762556644291,2.9,162.81,162.77,2.26086]
[1762556645396,2.94577315,162.81,162.77,2.30734457]
[1762556645695,2.9,162.8,162.77,2.30734457]
[1762556646299,0.04577315,162.81,162.77,2.30734457]
[1762556646300,0.04577315,162.81,162.78,2.95]
[1762556646497,2.94577315,162.81,162.77,2.30734457]
[1762556647007,0.04577315,162.81,162.78,2.95]
[1762556647699,2.94577315,162.81,162.78,2.95]
[1762556648907,2.94577315,162.81,162.77,2.30734457]
[1762556649293,2.94577315,162.81,162.77,5.25734457]
[1762556649999,8.47627315,162.81,162.77,5.25734457]
[1762556650300,2.9,162.8,162.77,2.30734457]
[1762556650505,2.9,162.79,162.77,2.30734457]
[1762556650900,0.04577315,162.81,162.78,2.95]
[1762556653113,0.04577315,162.81,162.79,2.95]
[1762556654413,0.04577315,162.81,162.77,2.30734457]
[1762556654414,2.94577315,162.81,162.77,2.30734457]
[1762556654721,0.04577315,162.81,162.78,2.95]
[1762556655007,2.94577315,162.81,162.77,5.25734457]
[1762556655316,2.94577315,162.81,162.78,2.95]
[1762556658614,2.9,162.8,162.77,2.30734457]
[1762556659008,8.47617315,162.81,162.77,5.25734457]
[1762556659508,2.9,162.79,162.77,2.30734457]
[1762556660612,2.94577315,162.81,162.78,2.95]
[1762556661908,2.9,162.8,162.77,2.30734457]
[1762556663402,2.9,162.78,162.77,2.30734457]
[1762556666214,2.9,162.76,162.72,2.95]
[1762556666517,2.9,162.76,162.69,2.95]
[1762556667316,0.0444725,162.74,162.71,2.99335217]
[1762556668121,0.0444725,162.74,162.71,8.52695217]
[1762556668311,0.0444725,162.74,162.72,2.95]
[1762556668515,2.9444725,162.74,162.71,0.04335217]
[1762556669421,2.9444725,162.74,162.71,2.99335217]
[1762556669422,0.0444725,162.74,162.71,2.99335217]
[1762556670912,2.9444725,162.74,162.71,2.99335217]
[1762556671522,0.0444725,162.74,162.71,2.99335217]
[1762556672115,2.9444725,162.74,162.71,2.99335217]
[1762556672322,0.0444725,162.74,162.71,2.99335217]
[1762556675430,3.2144725,162.74,162.71,0.04335217]
[1762556676226,8.7032,162.73,162.71,0.04335217]
[1762556676425,3.17,162.72,162.71,0.04335217]
[1762556676827,3.17,162.71,162.64,2.96]
[1762556677428,5.5335,162.72,162.65,2.96]
[1762556677632,3.17,162.74,162.65,2.96]
[1762556677826,0.04419151,162.71,162.68,2.99964079]
[1762556678632,3.21419151,162.71,162.68,2.99964079]
[1762556678931,8.74799151,162.71,162.68,0.03964079]
[1762556679531,8.7042,162.7,162.68,0.03964079]
[1762556679737,3.17,162.69,162.62,2.96]
[1762556680233,8.7052,162.67,162.62,2.96]
[1762556680431,3.17,162.67,162.59,2.96]
[1762556680936,0.04709961,162.65,162.59,2.96]
[1762556682931,0.04709961,162.65,162.6,5.5373]
[1762556683135,0.04709961,162.65,162.61,2.98]
[1762556689229,3.12709961,162.65,162.61,2.98]
[1762556689939,8.66299961,162.65,162.61,2.98]
[1762556693238,3.08,162.61,162.58,4.76410268]
[1762556693444,3.12066715,162.61,162.58,1.78410268]
[1762556694737,0.04066715,162.61,162.59,2.98]
[1762556695348,3.08,162.68,162.59,2.98]
[1762556696049,5.5352,162.67,162.6,2.98]
[1762556696254,0.041936,162.65,162.62,3.0241028]
[1762556697153,8.657736,162.65,162.62,0.0441028]
[1762556697947,3.08,162.64,162.62,0.0441028]
[1762556699650,5.577736,162.65,162.62,3.0241028]
[1762556700053,8.657736,162.65,162.62,0.0441028]
[1762556700556,8.6162,162.64,162.62,0.0441028]
[1762556700852,3.08,162.64,162.62,0.0441028]
[1762556701055,3.08,162.73,162.63,2.98]
[1762556701861,5.5338,162.71,162.64,5.536]
[1762556702064,0.0456505,162.69,162.67,2.98]
[1762556705752,0.0456505,162.69,162.68,3.12]
[1762556706057,8.4721,162.76,162.68,3.12]
[1762556706470,8.4721,162.76,162.7,3.12]
[1762556707060,0.04231531,162.75,162.72,3.12]
[1762556707261,0.04042561,162.75,162.72,3.16411902]
[1762556707767,0.04042561,162.75,162.72,8.69731902]
[1762556707965,0.04042561,162.75,162.73,3.12]
[1762556708867,81.64,162.82,162.77,3.12]
[1762556708868,78.7,162.82,162.77,3.12]
[1762556709465,78.7,162.82,162.78,3.12]